bitfinex-derivatives/quotes_ETHF0:USTF0_20210102
["timestamp","ask_amount","ask_price","bid_price","bid_amount"]
[1609597453560,0.76248755,757.15,756.93,10.44538]
[1609597453561,0.03812861,757.01,756.93,10.44538]
[1609597454560,0.03813501,757.03,756.93,10.44538]
[1609597455961,0.03815497,757.14,756.93,10.44538]
[1609597456161,0.03815497,757.14,757.13,6.01438]
[1609597456362,0.03815497,757.14,757.13,9.66538]
[1609597457165,0.03813297,757.27,757.13,9.66538]
[1609597458065,0.03813297,757.27,757.26,6.01438]
[1609597458265,0.6,757.29,757.26,6.01438]
[1609597460967,0.03821345,757.66,757.26,6.01438]
[1609597462067,0.03821345,757.66,757.65,6.01438]
[1609597462668,0.03821345,757.66,757.65,10.79538]
[1609597463669,15.0,758.44,757.65,10.79538]
[1609597463670,0.03825523,757.68,757.65,10.79538]
[1609597465371,0.15302091,757.76,757.65,10.79538]
[1609597465372,0.0383121,757.76,757.65,10.79538]
[1609597466172,0.0383121,757.76,757.75,6.01438]
[1609597466775,0.03838331,757.82,757.75,6.01438]
[1609597467775,0.7676662,757.96,757.75,6.01438]
[1609597467776,0.03839675,757.87,757.75,6.01438]
[1609597468178,0.03839675,757.87,757.86,6.01438]
[1609597468574,0.03839675,757.87,757.86,10.10138]
[1609597473280,0.03839675,757.87,757.86,9.72928]
[1609597473978,0.03838942,757.88,757.86,9.72928]
[1609597475082,0.0384187,758.0,757.86,9.72928]
[1609597475883,0.03841346,757.98,757.86,9.72928]
[1609597476281,0.03841346,757.98,757.97,6.01438]
[1609597477083,0.76826927,758.11,757.97,6.01438]
[1609597477084,0.15363603,757.99,757.97,6.01438]
[1609597480284,0.15361004,757.98,757.97,6.01438]
[1609597481487,0.07686747,757.99,757.86,4.087]
[1609597481685,0.07686747,757.99,757.65,4.781]
[1609597482085,6.16811494,758.03,757.32,14.51285081]
[1609597482287,6.16811494,758.03,757.9,6.01438]
[1609597482487,0.15373494,758.03,757.9,9.13638]
[1609597483089,0.03843053,757.95,757.9,9.13638]
[1609597484395,0.03843071,757.97,757.9,9.13638]
[1609597485497,0.03843551,757.99,757.9,9.13638]
[1609597486297,0.03843551,757.99,757.98,6.01438]
[1609597487199,0.03839149,758.03,757.98,6.01438]
[1609597488200,0.03840198,758.11,757.98,6.01438]
[1609597489203,0.03847064,758.37,757.98,6.01438]
[1609597490102,0.76941278,758.51,757.98,6.01438]
[1609597490103,0.03846842,758.36,757.98,6.01438]
[1609597490302,0.03846842,758.36,758.35,6.01438]
[1609597490701,0.03846842,758.36,758.35,10.36638]
[1609597490902,0.0384925,758.5,758.35,10.36638]
[1609597491904,0.0384925,758.5,758.43,0.158]
[1609597492104,0.03851397,758.58,758.43,0.158]
[1609597492304,0.03851397,758.58,758.57,6.01438]
[1609597492704,0.03851397,758.58,758.57,10.82638]
[1609597493105,0.03855294,758.69,758.57,10.82638]
[1609597493505,0.03855294,758.69,758.57,4.812]
[1609597494106,0.03854696,758.66,758.57,4.812]
[1609597494307,0.03854696,758.66,758.6,6.01438]
[1609597496308,0.11571345,758.66,758.6,6.01438]
[1609597497910,1.23466379,758.81,758.6,6.01438]
[1609597497911,0.11578107,758.75,758.6,6.01438]
[1609597498310,0.11578107,758.75,758.74,6.01438]
[1609597498509,0.11578107,758.75,758.74,10.92638]
[1609597499310,0.0385819,758.85,758.74,10.92638]
[1609597500412,0.11572129,758.88,758.84,6.01438]
[1609597501514,0.03858582,758.85,758.84,6.01438]
[1609597502311,6.05296582,758.85,758.84,6.01438]
[1609597502511,6.01438,758.85,758.74,4.912]
[1609597502711,21.01438,758.85,758.74,4.912]
[1609597503513,21.01438,758.85,758.57,4.812]
[1609597503714,0.38546714,758.75,758.57,4.812]
[1609597503913,0.38546714,758.75,758.43,0.158]
[1609597504314,6.01438,758.55,758.43,0.158]
[1609597505816,0.38546714,758.75,758.43,0.158]
[1609597506417,0.03852335,758.59,758.43,0.158]
[1609597508020,0.03843904,758.62,758.43,0.158]
[1609597508419,0.03843904,758.62,758.61,6.01438]
[1609597508619,0.03843904,758.62,758.61,9.17138]
[1609597509220,0.03846519,758.74,758.61,9.17138]
[1609597510421,0.0384397,758.66,758.61,9.17138]
[1609597511023,0.03844535,758.68,758.61,9.17138]
[1609597512023,0.03846203,758.75,758.61,9.17138]
[1609597512422,0.03846203,758.75,758.61,3.157]
[1609597513323,0.03845821,758.73,758.61,3.157]
[1609597513623,0.03845821,758.73,758.48,6.01438]
[1609597514324,6.01438,758.67,758.48,6.01438]
[1609597515726,0.03845483,758.76,758.48,6.01438]
[1609597516326,6.05283483,758.76,758.59,6.01438]
[1609597516526,6.05283483,758.76,758.59,9.59238]
[1609597516728,6.01438,758.76,758.59,9.59238]
[1609597518440,6.01438,758.65,758.59,9.59238]
[1609597519833,0.03843534,758.77,758.59,9.59238]
[1609597521033,6.01438,758.79,758.59,9.59238]
[1609597521936,15.0,758.78,758.59,3.578]
[1609597522136,15.0,758.78,758.41,0.4117]
[1609597522335,6.01438,758.42,758.41,0.4117]
[1609597522636,15.0,758.78,758.41,0.4117]
[1609597523638,15.0,758.77,758.41,0.4117]
[1609597524439,6.01438,758.42,758.41,0.4117]
[1609597524639,0.03845555,758.78,758.41,0.4117]
[1609597524840,0.03837877,758.48,758.41,0.4117]
[1609597525840,0.38378769,758.59,758.41,0.4117]
[1609597526342,6.01438,758.42,758.41,0.4117]
[1609597526540,21.01438,758.42,758.41,0.4117]
[1609597527142,0.38376147,758.57,758.41,0.4117]
[1609597528343,6.01438,758.42,758.41,0.4117]
[1609597530746,0.38371447,758.51,758.41,0.4117]
[1609597532352,6.01438,758.42,758.41,0.4117]
[1609597534653,105.45038,758.42,758.41,0.4117]
[1609597535254,105.45038,758.42,758.35,4.352]
[1609597535653,6.01438,758.42,757.9,3.122]
[1609597535853,6.01438,758.42,757.76,14.50546549]
[1609597536354,14.525,758.42,757.76,14.50546549]
[1609597536755,14.525,758.42,757.76,18.08346549]
[1609597537855,0.38371447,758.51,757.76,18.08346549]
[1609597538357,6.01438,758.12,757.77,6.01438]
[1609597539459,6.01438,758.12,757.78,14.50421876]
[1609597540160,6.01438,758.12,757.77,6.01438]
[1609597540359,6.01438,758.12,757.92,6.01438]
[1609597540560,14.7934,758.11,757.92,4.119]
[1609597540759,6.01438,758.12,757.92,4.119]
[1609597540960,101.7765,757.99,757.92,4.119]
[1609597541159,6.01438,758.12,757.92,4.119]
[1609597541361,81.9443,758.06,757.92,4.119]
[1609597542364,6.01438,757.93,757.92,4.119]
[1609597545572,6.01438,757.93,757.76,3.578]
[1609597545771,6.01438,757.93,757.62,6.01438]
[1609597546571,6.01438,757.8,757.73,6.01438]
[1609597547273,6.01438,757.8,757.28,14.50679534]
[1609597548276,20.38368,757.8,757.28,14.50679534]
[1609597548474,6.01438,757.7,757.28,14.50679534]
[1609597548874,6.01438,757.7,756.38,15.0]
[1609597548875,6.01438,757.7,757.34,14.51098939]
[1609597549073,6.01438,757.7,757.34,17.57698939]
[1609597550275,6.01438,757.7,757.34,3.066]
[1609597550474,6.01438,757.35,757.34,3.066]
[1609597554084,6.01438,757.35,757.04,14.51734264]
[1609597554482,6.01438,757.05,757.04,14.51734264]
[1609597555284,103.9961,757.63,757.04,14.51734264]
[1609597555485,103.9961,757.63,757.04,18.55334264]
[1609597555685,0.37943305,757.61,757.04,4.036]
[1609597556085,109.5359,757.38,757.04,4.036]
[1609597556285,0.37943305,757.61,757.04,4.036]
[1609597556485,6.01438,757.05,757.04,4.036]
[1609597560287,6.01438,757.05,756.42,14.52967959]
[1609597560488,6.01438,756.43,756.42,14.52967959]
[1609597560889,85.7491,756.78,756.42,14.52967959]
[1609597562291,85.7491,756.78,756.42,17.92567959]
[1609597562490,85.7491,756.78,756.55,6.01438]
[1609597562891,2.6581,756.77,756.42,17.92567959]
[1609597563091,85.7491,756.78,756.42,17.92567959]
[1609597564093,2.6647,756.77,756.42,17.92567959]
[1609597564593,6.01438,756.58,756.55,6.01438]
[1609597564796,2.6178,756.57,756.55,6.01438]
[1609597564993,85.7491,756.78,756.55,6.01438]
[1609597565193,4.84278277,757.05,756.55,6.01438]
[1609597565695,4.84278277,757.05,756.42,3.396]
[1609597565894,0.37829007,757.1,756.42,3.396]
[1609597566493,6.01438,756.94,756.81,6.01438]
[1609597566695,2.6691,756.93,756.81,6.01438]
[1609597566895,12.971,756.87,756.42,3.396]
[1609597567095,6.01438,756.94,756.42,3.396]
[1609597567295,74.4185,756.79,756.35,14.5258347]
[1609597567795,2.6355,756.78,756.35,14.5258347]
[1609597567996,2.6355,756.78,755.97,24.2097245]
[1609597567997,2.6355,756.78,756.32,14.53179251]
[1609597568596,6.01438,756.33,756.32,14.53179251]
[1609597568796,2.6355,756.78,756.32,14.53179251]
[1609597569597,74.4185,756.79,756.32,14.53179251]
[1609597569999,74.4185,756.79,756.04,14.53417848]
[1609597570197,0.3778374,756.86,756.32,4.163]
[1609597570397,95.6828,756.38,756.32,4.163]
[1609597570597,6.01438,756.33,756.32,4.163]
[1609597573910,8.67608,756.33,756.32,4.163]
[1609597574111,6.01438,756.33,756.32,4.163]
[1609597575112,8.65048,756.33,755.65,14.53942046]
[1609597575612,6.01438,756.33,755.65,14.53942046]
[1609597576413,6.01438,756.33,755.67,14.54010785]
[1609597576613,2.6342,756.32,755.69,6.01438]
[1609597577013,95.6828,756.38,755.69,6.01438]
[1609597577513,0.37696439,756.37,755.69,6.01438]
[1609597577914,2.6587,756.36,755.69,6.01438]
[1609597578718,6.01438,756.08,755.84,6.01438]
[1609597579313,0.37684453,756.38,755.84,6.01438]
[1609597579516,0.37703179,756.46,755.84,9.60338]
[1609597580116,2.6346,756.45,755.84,9.60338]
[1609597580316,0.37703179,756.46,755.84,9.60338]
[1609597580717,6.01438,756.15,755.84,9.60338]
[1609597581317,6.01438,756.15,755.84,3.589]
[1609597581817,2.6323,756.14,755.84,3.589]
[1609597582621,6.01438,756.03,755.84,3.589]
[1609597584419,6.01438,756.03,755.78,6.01438]
[1609597584619,6.01438,755.9,755.78,6.01438]
[1609597585421,0.37726564,756.51,755.78,6.01438]
[1609597585822,0.37726564,756.51,755.68,14.53998309]
[1609597586222,93.9007,756.18,755.68,14.53998309]
[1609597586621,6.01438,755.69,755.68,14.53998309]
[1609597587224,0.37726564,756.51,755.68,14.53998309]
[1609597588726,6.01438,755.7,755.68,14.53998309]
[1609597589328,0.37726564,756.51,755.68,14.53998309]
[1609597589930,0.37783396,756.36,755.67,4.752]
[1609597590130,0.37783396,756.36,755.53,14.54086482]
[1609597590729,6.01438,756.25,755.8,6.01438]
[1609597592130,0.37822494,756.48,755.8,6.01438]
[1609597592530,0.37822494,756.48,755.8,9.77538]
[1609597592730,0.37822494,756.48,756.34,6.01438]
[1609597592935,0.37851436,756.61,756.34,10.13538]
[1609597594731,6.01438,756.8,756.6,6.01438]
[1609597594932,6.01438,756.8,756.34,4.121]
[1609597596136,2.6445,756.79,756.34,4.121]
[1609597596735,2.6445,756.79,756.6,6.01438]
[1609597596934,2.6445,756.79,756.6,10.74038]
[1609597598637,2.6445,756.79,756.76,6.01438]
[1609597598838,2.6445,756.79,756.76,9.65938]
[1609597599036,0.37981595,757.07,756.76,9.65938]
[1609597599940,0.38015237,757.23,756.76,9.65938]
[1609597600137,2.6018,757.22,756.76,9.65938]
[1609597600638,6.01438,757.08,757.0,6.01438]
[1609597601637,6.01438,757.08,756.76,3.645]
[1609597602236,2.6337,757.07,756.76,3.645]
[1609597603836,2.6337,757.07,756.61,6.01438]
[1609597604537,6.01438,757.08,756.61,6.01438]
[1609597604737,6.01438,757.08,757.0,10.26938]
[1609597607041,6.01438,757.08,757.0,4.255]
[1609597607642,2.6155,757.07,757.0,4.255]
[1609597608846,6.01438,757.08,757.0,4.255]
[1609597609745,2.6636,757.07,756.68,6.01438]
[1609597610543,6.01438,757.08,756.68,6.01438]
[1609597610745,6.01438,757.08,756.6,4.726]
[1609597610746,6.01438,756.76,756.6,4.726]
[1609597611045,6.01438,756.76,756.42,14.52615999]
[1609597611244,0.38029359,757.21,756.42,14.52615999]
[1609597611845,2.99090083,757.2,756.4,14.52470453]
[1609597612045,0.38000083,757.2,756.4,14.52470453]
[1609597612446,96.3143,756.96,756.4,14.52470453]
[1609597612645,6.01438,756.65,756.4,14.52470453]
[1609597612845,16.64278,756.65,756.4,14.52470453]
[1609597613246,16.64278,756.65,756.48,14.53034157]
[1609597614148,16.64278,756.65,756.34,4.121]
[1609597614345,2.6648,756.64,756.15,14.53401384]
[1609597614546,16.64278,756.65,756.15,14.53401384]
[1609597614746,6.01438,756.46,756.15,14.53401384]
[1609597614947,6.01438,756.46,756.15,18.74201384]
[1609597616650,6.01438,756.46,756.32,6.01438]
[1609597616848,2.6267,756.45,756.32,6.01438]
[1609597617048,10.6284,756.65,756.32,6.01438]
[1609597617248,10.6284,756.65,756.32,10.74038]
[1609597618249,11.6914,757.25,756.32,10.74038]
[1609597618449,0.37913146,756.86,756.32,10.74038]
[1609597618649,6.01438,756.72,756.32,10.74038]
[1609597619448,2.6075,756.71,756.32,10.74038]
[1609597619748,2.6075,756.71,756.33,15.0]
[1609597620350,2.6075,756.71,756.37,14.52478262]
[1609597620749,2.6075,756.71,756.7,6.01438]
[1609597620951,6.01438,757.0,756.7,6.01438]
[1609597621151,6.01438,757.0,756.7,10.13338]
[1609597621351,0.38022578,757.16,756.7,10.13338]
[1609597622652,6.01438,756.93,756.84,6.01438]
[1609597623352,2.6279,756.92,756.84,6.01438]
[1609597623553,6.01438,756.93,756.7,4.119]
[1609597626155,6.01438,756.93,756.35,14.5223319]
[1609597626356,2.6361,756.92,756.35,14.5223319]
[1609597626656,6.01438,756.65,756.38,6.01438]
[1609597627555,0.37915143,757.16,756.38,6.01438]
[1609597628457,2.6112,757.15,756.38,6.01438]
[1609597628657,6.01438,756.5,756.38,6.01438]
[1609597629056,0.37915143,757.16,756.38,6.01438]
[1609597630759,6.01438,756.84,756.8,6.01438]
[1609597631158,2.6123,757.15,756.8,6.01438]
[1609597631359,2.6123,757.15,756.8,10.24338]
[1609597632860,6.01438,757.06,756.8,10.24338]
[1609597634867,6.01438,757.06,756.8,4.229]
[1609597636268,6.01438,757.06,756.55,14.51867169]
[1609597636667,0.37952154,757.34,756.55,18.20967169]
[1609597636868,0.37952154,757.34,757.23,6.01438]
[1609597637067,12.008,758.2,757.23,10.61938]
[1609597637068,0.37958452,757.37,757.23,10.61938]
[1609597638071,0.37936395,757.34,757.23,10.61938]
[1609597638770,6.01438,757.24,757.23,10.61938]
[1609597638972,8.64958,757.24,757.23,10.61938]
[1609597640274,6.01438,757.24,757.23,10.61938]
[1609597641275,2.6635,757.24,757.23,10.61938]
[1609597641474,0.37943731,757.36,757.23,10.61938]
[1609597643474,2.6745,757.35,757.23,10.61938]
[1609597644778,2.6745,757.35,757.34,6.01438]
[1609597646878,0.37943731,757.36,757.34,6.01438]
[1609597648279,0.37943731,757.36,757.23,4.605]
[1609597648481,101.3795,757.16,756.56,14.51843413]
[1609597648879,6.01438,757.12,756.94,6.01438]
[1609597649281,6.01438,757.12,756.56,14.51843413]
[1609597650780,6.01438,756.95,756.83,6.01438]
[1609597652582,0.37961801,757.35,756.83,6.01438]
[1609597652782,6.01438,757.03,757.0,6.01438]
[1609597652984,2.6804,757.02,757.0,6.01438]
[1609597655385,0.38098619,757.4,757.0,6.01438]
[1609597655586,0.38098619,757.4,757.0,10.72138]
[1609597656785,6.01438,757.24,757.0,10.72138]
[1609597658786,6.01438,757.24,757.18,6.01438]
[1609597658987,6.01438,757.24,757.18,9.28738]
[1609597659789,2.615,757.23,757.18,9.28738]
[1609597659988,2.615,757.23,757.18,3.273]
[1609597662290,0.38098961,757.39,757.18,3.273]
[1609597662692,0.38107064,757.42,757.18,3.273]
[1609597663294,2.627,757.41,757.18,3.273]
[1609597663693,3.00801465,757.41,757.18,3.273]
[1609597664094,3.00801465,757.41,757.0,4.707]
[1609597664494,3.00801465,757.41,756.83,4.735]
[1609597664694,3.00801465,757.41,729.8,0.26270661]
[1609597664695,2.627,757.41,756.66,14.52026739]
[1609597664893,2.627,757.41,757.15,6.01438]
[1609597665293,2.627,757.41,757.15,10.51238]
[1609597666897,2.627,757.41,757.4,6.01438]
[1609597667295,2.627,757.41,757.4,9.56238]
[1609597669502,6.01438,757.43,757.4,9.56238]
[1609597670602,2.6534,757.42,757.4,9.56238]
[1609597670803,6.01438,757.43,757.4,9.56238]
[1609597671002,0.38160559,757.48,757.4,9.56238]
[1609597671203,4.029,757.55,757.4,9.56238]
[1609597672004,6.01438,757.56,757.4,9.56238]
[1609597672904,6.01438,757.56,757.55,6.01438]
[1609597674408,8.62368,757.56,757.55,6.01438]
[1609597674807,6.01438,757.56,757.55,6.01438]
[1609597676409,6.01438,757.56,757.4,3.548]
[1609597676609,6.01438,757.56,757.15,4.498]
[1609597676912,6.01438,757.56,757.48,6.01438]
[1609597677110,6.01438,757.56,757.48,10.36738]
[1609597684619,2.6595,757.55,757.48,10.36738]
[1609597684827,6.01438,757.56,757.48,10.36738]
[1609597692532,2.6687,757.55,757.48,10.36738]
[1609597692735,6.01438,757.56,757.48,10.36738]
[1609597694533,2.6719,757.55,757.48,10.36738]
[1609597694734,6.01438,757.56,757.48,10.36738]
[1609597695735,2.6516,757.55,757.48,10.36738]
[1609597695936,6.01438,757.56,757.48,10.36738]
[1609597696938,2.6759,757.55,757.48,10.36738]
[1609597699240,6.01438,757.56,757.48,10.36738]
[1609597699840,0.38223527,757.76,757.48,10.36738]
[1609597700240,0.38193267,757.77,757.48,10.36738]
[1609597700941,2.6524,757.97,757.48,10.36738]
[1609597700942,0.38207349,757.82,757.48,10.36738]
[1609597701141,0.38207349,757.82,757.79,6.01438]
[1609597701341,0.38207349,757.82,757.79,10.10538]
[1609597701944,0.38204121,757.83,757.79,10.10538]
[1609597702544,2.6744,757.82,757.79,10.10538]
[1609597703144,2.6744,757.82,757.79,4.091]
[1609597703343,0.38204121,757.83,757.79,4.091]
[1609597703543,1.22253188,757.91,757.79,4.091]
[1609597703544,0.38207691,757.88,757.79,4.091]
[1609597704346,2.642,757.87,757.79,4.091]
[1609597704546,0.38156793,757.84,757.79,4.091]
[1609597705948,2.6087,757.83,757.79,4.091]
[1609597706248,2.6087,757.83,757.48,4.353]
[1609597706447,2.6087,757.83,757.06,14.51353538]
[1609597707047,2.6087,757.83,757.67,6.01438]
[1609597707249,2.6087,757.83,757.67,9.44438]
[1609597707250,0.38138929,757.8,757.67,9.44438]
[1609597708550,0.15234533,757.7,757.67,3.43]
[1609597709149,6.01438,757.68,757.67,3.43]
[1609597709748,8.63778,757.68,757.4,6.01438]
[1609597711055,6.01438,757.41,757.4,6.01438]
[1609597712355,8.67888,757.41,757.4,6.01438]
[1609597712755,6.01438,757.41,757.4,6.01438]
[1609597713557,6.01438,757.41,757.4,9.01438]
[1609597714357,6.01438,757.41,757.4,3.0]
[1609597715357,8.64748,757.41,757.4,3.0]
[1609597716161,9.40741421,757.41,757.4,3.0]
[1609597716557,6.77431421,757.41,757.4,3.0]
[1609597717259,6.01438,757.41,757.4,3.0]
[1609597717758,10.85582869,757.41,757.4,7.188]
[1609597718758,13.52052869,757.41,757.4,7.188]
[1609597718957,10.85582869,757.41,757.4,7.188]
[1609597720162,10.85582869,757.41,757.4,2.6251]
[1609597720358,10.85582869,757.41,757.33,4.571]
[1609597720761,78.114,757.34,757.33,4.571]
[1609597721761,91.02852392,757.34,757.33,4.571]
[1609597722059,93.66162392,757.34,757.33,4.571]
[1609597722762,93.66162392,757.34,757.33,0.53512169]
[1609597722961,93.66162392,757.34,757.1,4.064]
[1609597723160,6.01438,757.11,757.1,4.064]
[1609597724262,21.97868,757.11,757.1,4.064]
[1609597724462,26.58729221,757.11,757.1,4.064]
[1609597724661,26.58729221,757.11,756.07,14.53040486]
[1609597724861,13.28039221,757.11,756.07,14.53040486]
[1609597725062,104.8293,756.88,756.07,14.53040486]
[1609597725262,104.8293,756.88,755.98,14.53571377]
[1609597725263,6.01438,756.08,755.98,14.53571377]
[1609597725463,104.8293,756.88,755.98,14.53571377]
[1609597725666,104.8293,756.88,755.98,18.30971377]
[1609597726165,2.6503,756.87,755.98,18.30971377]
[1609597726365,104.8293,756.88,755.98,18.30971377]
[1609597727068,0.15114817,756.58,755.98,3.774]
[1609597727265,6.01438,755.99,755.98,3.774]
[1609597729066,8.66428,755.99,755.98,3.774]
[1609597729466,2.6499,755.99,755.98,3.774]
[1609597729867,2.6354,756.37,755.98,3.774]
[1609597730668,0.15096282,756.41,755.98,3.774]
[1609597730868,0.15096282,756.41,755.98,4.812]
[1609597731268,0.15096282,756.41,756.4,6.01438]
[1609597731468,0.15096282,756.41,756.4,10.89038]
[1609597732869,2.76686282,756.41,756.4,10.89038]
[1609597733071,2.76686282,756.41,756.4,4.876]
[1609597733270,2.76686282,756.41,756.4,10.89038]
[1609597733671,2.6159,756.41,756.4,10.89038]
[1609597734271,0.15097627,756.47,756.4,4.876]
[1609597734672,0.15120489,756.77,756.4,4.876]
[1609597735273,2.682,756.64,756.4,4.876]
[1609597735775,2.682,756.64,756.4,5.476]
[1609597735975,0.15110311,756.63,756.4,5.476]
[1609597737273,6.01438,756.52,756.4,5.476]
[1609597737477,2.6378,756.51,756.4,5.476]
[1609597737675,6.01438,756.52,756.4,5.476]
[1609597738674,2.6315,756.51,756.4,5.476]
[1609597739275,6.01438,756.41,756.4,5.476]
[1609597740677,8.64118,756.41,756.4,5.476]
[1609597740878,2.6268,756.41,756.4,5.476]
[1609597741480,6.01438,756.45,756.4,5.476]
[1609597741883,0.15105145,756.55,756.4,5.476]
[1609597742583,2.6383,756.54,756.4,5.476]
[1609597742784,0.15097067,756.59,756.4,5.476]
[1609597743385,6.01438,756.5,756.4,5.476]
[1609597745388,6.01438,756.41,756.4,5.476]
[1609597745787,8.61868,756.41,756.4,5.476]
[1609597746787,6.01438,756.41,756.4,5.476]
[1609597749494,8.67628,756.41,756.4,5.476]
[1609597749693,8.82713193,756.41,756.4,5.476]
[1609597750494,6.16523193,756.41,756.4,5.476]
[1609597751294,6.01438,756.41,756.4,5.476]
[1609597751593,8.65248,756.41,756.4,5.476]
[1609597752193,6.01438,756.41,756.4,5.476]
[1609597752395,17.15508,756.41,756.4,5.476]
[1609597753595,22.00268585,756.41,756.4,5.476]
[1609597753794,24.61518585,756.41,756.4,5.476]
[1609597754997,22.00268585,756.41,756.4,5.476]
[1609597756098,24.61678585,756.41,756.4,5.476]
[1609597757097,22.00268585,756.41,756.4,5.476]
[1609597759405,23.80682515,756.41,756.4,5.476]
[1609597760809,22.00268585,756.41,756.4,5.476]
[1609597761701,27.26446319,756.41,756.27,3.843]
[1609597761901,16.12376319,756.41,756.27,3.843]
[1609597762101,100.2655,756.28,756.27,3.843]
[1609597762601,100.2655,756.28,755.98,4.812]
[1609597762801,100.2655,756.28,755.17,14.54949473]
[1609597763001,10.86198585,756.41,755.07,14.5521418]
[1609597763202,110.9275,756.05,755.07,18.2651418]
[1609597763403,6.01438,755.23,755.08,6.01438]
[1609597763601,110.9275,756.05,755.08,6.01438]
[1609597764007,0.14981383,755.81,755.08,6.01438]
[1609597765305,6.01438,755.24,755.19,6.01438]
[1609597765507,0.14981383,755.81,755.19,6.01438]
[1609597765707,0.14981215,755.8,755.19,6.01438]
[1609597766808,0.07470069,755.74,755.19,6.01438]
[1609597767207,0.07470069,755.74,755.07,3.713]
[1609597767208,88.4393,755.55,755.07,3.713]
[1609597767407,6.01438,755.08,755.07,3.713]
[1609597767808,97.4205,755.18,755.07,3.713]
[1609597768007,0.07469796,755.69,755.07,3.713]
[1609597768208,0.07469796,755.69,754.89,14.55618092]
[1609597768407,0.07469796,755.69,755.07,4.582]
[1609597768812,0.07455074,755.43,755.07,4.582]
[1609597769410,6.01438,755.12,755.07,4.582]
[1609597770012,85.79038,755.12,755.07,4.582]
[1609597770810,2.6711,755.11,755.07,4.582]
[1609597773013,97.3766,755.08,755.07,4.582]
[1609597773415,0.14859585,755.09,754.23,14.56963657]
[1609597773615,98.5619,755.04,754.23,18.03563657]
[1609597774417,0.07410129,754.75,754.23,3.466]
[1609597775523,6.01438,754.57,754.23,3.466]
[1609597777522,6.01438,754.25,754.23,3.466]
[1609597778725,2.6123,754.24,753.81,14.58045248]
[1609597778927,103.5047,753.99,753.81,14.58045248]
[1609597779525,6.01438,753.82,753.81,14.58045248]
[1609597780327,6.01438,753.82,753.35,6.01438]
[1609597780526,6.01438,753.82,753.15,14.58616195]
[1609597780725,8.63558,753.82,753.15,14.58616195]
[1609597780926,8.63558,753.82,752.34,15.0]
[1609597780927,6.01438,753.82,753.02,14.58797799]
[1609597781532,6.01438,753.82,753.81,6.01438]
[1609597781731,6.01438,753.82,753.81,10.42038]
[1609597782127,8.66928,753.82,753.81,10.42038]
[1609597782426,6.01438,753.82,753.81,10.42038]
[1609597782828,0.07359072,754.1,753.81,10.42038]
[1609597783427,0.07345712,754.13,753.89,6.01438]
[1609597783828,0.07345712,754.13,753.81,4.406]
[1609597784628,6.01438,754.16,753.81,4.406]
[1609597785429,6.01438,753.82,753.81,4.406]
[1609597786027,19.10008,753.82,753.81,4.406]
[1609597786630,21.72788,753.82,753.81,4.406]
[1609597786829,6.01438,753.82,753.26,14.58460551]
[1609597787231,6.01438,753.82,753.0,14.58662637]
[1609597787431,6.01438,753.82,753.73,6.01438]
[1609597787631,6.01438,753.82,753.73,10.35838]
[1609597789233,6.01438,753.82,753.73,4.344]
[1609597789430,6.01438,753.74,753.73,4.344]
[1609597792737,6.01438,753.74,753.06,6.01438]
[1609597793436,6.01438,753.37,753.24,6.01438]
[1609597795537,2.6411,753.62,753.36,6.01438]
[1609597795738,2.6411,753.62,753.36,10.84838]
[1609597796138,0.07297962,753.86,753.36,10.84838]
[1609597797141,0.07280252,753.84,753.36,10.84838]
[1609597797539,6.01438,753.78,753.36,4.834]
[1609597799442,2.6145,753.77,753.36,4.834]
[1609597800141,0.07277597,753.87,753.36,4.834]
[1609597800841,0.07277597,753.87,753.21,6.01438]